fUSD/lending_fUSD_20240508
["ID","MTS","AMOUNT","RATE_DAILY","PERIOD"]
[326643461,1715191854569,-151.0,0.00021918,7]
[326643462,1715191854579,-151.0,0.00021918,7]
[326643463,1715191854588,-151.0,0.00021918,7]
[326643464,1715191854598,-151.0,0.00021918,7]
[326643465,1715191854607,-285.925626,0.00021918,7]
[326643466,1715191854617,-285.925626,0.00021918,7]
[326643467,1715191854626,-185.948844,0.00021918,7]
[326643468,1715191854636,-453.302917,0.00021918,7]
[326643469,1715191854646,-453.302917,0.00021918,7]
[326643470,1715191854655,-151.0,0.00021918,7]
[326643471,1715191854665,-151.0,0.00021918,7]
[326643472,1715191854675,-151.0,0.00021918,7]
[326643473,1715191854685,-151.0,0.00021918,7]
[326643474,1715191854695,-257.24917,0.00021918,7]
[326643475,1715191854705,-257.24917,0.00021918,7]
[326643476,1715191854714,-250.093283,0.00021918,7]
[326643477,1715191854724,-250.093283,0.00021918,7]
[326643478,1715191854734,-151.0,0.00021918,7]
[326643479,1715191854744,-151.0,0.00021918,7]
[326643480,1715191854754,-151.0,0.00021918,7]
[326643481,1715191854763,-151.0,0.00021918,7]
[326643482,1715191854773,-215.822161,0.00021918,7]
[326643483,1715191854783,-333.761446,0.00021918,7]
[326643484,1715191854793,-333.761446,0.00021918,7]
[326643485,1715191854803,-154.776194,0.00021918,7]
[326643486,1715191854813,-154.776194,0.00021918,7]
[326643487,1715191854822,-152.43,0.0002195,15]
[326643488,1715191854832,-150.5,0.0002195,15]
[326643489,1715191854842,-201.0,0.0002195,15]
[326643490,1715191854852,-2661.0,0.0002195,15]
[326643491,1715191854861,-3265.0,0.0002195,15]
[326643492,1715191854871,-150.5,0.0002195,15]
[326643493,1715191854880,-240.0,0.0002195,15]
[326643494,1715191854890,-201.0,0.00021954,15]
[326643495,1715191854899,-2661.0,0.00021954,15]
[326643496,1715191854909,-3265.0,0.00021954,15]
[326643497,1715191854919,-240.0,0.00021954,15]
[326643498,1715191854930,-150.5,0.00021954,15]
[326643499,1715191854940,-5992.180938,0.00021954,7]
[326643500,1715191854949,-151.0,0.00021954,7]
[326643501,1715191854959,-5992.180938,0.00021954,7]
[326643502,1715191854969,-288.056492,0.00021954,7]
[326643503,1715191854979,-151.803468,0.00021954,7]
[326643504,1715191854988,-288.056492,0.00021954,7]
[326643505,1715191854998,-151.0,0.00021954,7]
[326643506,1715191855012,-246.25155,0.00021954,7]
[326643507,1715191855022,-151.0,0.00021954,7]
[326643508,1715191855031,-554.04924,0.00021954,7]
[326643509,1715191855041,-246.25155,0.00021954,7]
[326643510,1715191855051,-150.5,0.0002196,15]
[326643511,1715191855060,-150.5,0.0002196,15]
[326643512,1715191855071,-201.0,0.0002196,15]
[326643513,1715191855167,-2661.0,0.0002196,15]
[326643514,1715191855177,-3265.0,0.0002196,15]
[326643515,1715191855187,-150.5,0.0002196,15]
[326643516,1715191855196,-240.0,0.0002196,15]
[326643517,1715191855206,-201.0,0.00021964,15]
[326643518,1715191855216,-2661.0,0.00021964,15]
[326643519,1715191855226,-2661.0,0.00021964,15]
[326643520,1715191855235,-201.0,0.00021964,15]
[326643521,1715191855245,-3265.0,0.00021964,15]
[326643522,1715191855254,-150.5,0.00021964,15]
[326643523,1715191855264,-240.0,0.00021964,15]
[326643524,1715191855273,-3265.0,0.00021964,15]
[326643525,1715191855282,-240.0,0.00021964,15]
[326643526,1715191855291,-269.0,0.00021964,15]
[326643527,1715191855301,-26113.0827703,0.00021969,2]
[326643528,1715191855310,-3085.6359877,0.00021969,2]
[326643529,1715191855319,-153.951927,0.00021969,7]
[326643530,1715191855329,-151.0,0.00021969,7]
[326643531,1715191855338,-151.0,0.00021969,7]
[326643532,1715191855347,-151.0,0.00021969,7]
[326643533,1715191855357,-151.0,0.00021969,7]
[326643534,1715191855366,-151.0,0.00021969,7]
[326643535,1715191855375,-10015.4066984,0.00021969,2]
[326643536,1715191855385,-151.0,0.00021969,7]
[326643537,1715191855395,-181.475129,0.00021969,7]
[326643538,1715191855404,-239.63431,0.00021969,7]
[326643539,1715191855413,-181.475129,0.00021969,7]
[326643540,1715191855423,-239.63431,0.00021969,7]
[326643541,1715191855433,-151.0,0.00021969,7]
[326643542,1715191855442,-151.563143,0.00021969,7]
[326643543,1715191855451,-155.117132,0.00021969,7]
[326643544,1715191855461,-151.0,0.00021969,5]
[326643545,1715191855470,-151.0,0.00021969,7]
[326643546,1715191855479,-151.0,0.00021969,5]
[326643547,1715191855489,-18407.3079368,0.00021969,2]
[326643548,1715191855498,-599.599126,0.00021969,7]
[326643549,1715191855508,-297.194195,0.00021969,7]
[326643550,1715191855517,-2684.697006,0.00021969,7]
[326643551,1715191855528,-599.599126,0.00021969,7]
[326643552,1715191855538,-2684.697006,0.00021969,7]
[326643553,1715191855547,-151.0,0.00021969,7]
[326643554,1715191855556,-153.20767,0.00021969,7]
[326643555,1715191855565,-151.0,0.00021969,7]
[326643556,1715191855575,-151.0,0.00021969,7]
[326643557,1715191855584,-151.0,0.00021969,7]
[326643558,1715191855593,-151.0,0.00021969,7]
[326643559,1715191855603,-5992.180938,0.00021969,7]
[326643560,1715191855612,-151.0,0.00021969,7]
[326643561,1715191855631,-5992.180938,0.00021969,7]
[326643562,1715191855641,-288.056492,0.00021969,7]
[326643563,1715191855651,-288.056492,0.00021969,7]
[326643564,1715191855660,-151.0,0.00021969,7]
[326643565,1715191855670,-246.25155,0.00021969,7]
[326643566,1715191855681,-151.0,0.00021969,7]
[326643567,1715191855691,-554.04924,0.00021969,7]
[326643568,1715191855700,-246.25155,0.00021969,7]
[326643569,1715191855710,-150.5,0.0002197,15]
[326643570,1715191855719,-150.5,0.0002197,15]
[326643571,1715191855728,-150.5,0.0002197,15]
[326643572,1715191855739,-201.0,0.0002197,15]
[326643573,1715191855749,-2661.0,0.0002197,15]
[326643574,1715191855759,-3265.0,0.0002197,15]
[326643575,1715191855768,-150.5,0.0002197,15]
[326643576,1715191855777,-240.0,0.0002197,15]
[326643577,1715191855787,-201.0,0.00021974,15]
[326643578,1715191855796,-2661.0,0.00021974,15]
[326643579,1715191855805,-201.0,0.00021974,15]
[326643580,1715191855816,-2661.0,0.00021974,15]
[326643581,1715191855825,-3265.0,0.00021974,15]
[326643582,1715191855835,-150.5,0.00021974,15]
[326643583,1715191855844,-240.0,0.00021974,15]
[326643584,1715191855854,-3265.0,0.00021974,15]
[326643585,1715191855864,-240.0,0.00021974,15]
[326643586,1715191855873,-150.5,0.00021974,15]
[326643587,1715191855883,-151.0,0.00021975,7]
[326643588,1715191855892,-151.0,0.00021975,7]
[326643589,1715191855902,-151.0,0.00021975,7]
[326643590,1715191855911,-235.54923,0.00021975,7]
[326643591,1715191855920,-151.0,0.00021975,7]
[326643592,1715191855931,-151.0,0.00021975,7]
[326643593,1715191855941,-151.0,0.00021975,7]
[326643594,1715191855951,-151.0,0.00021975,7]
[326643595,1715191855960,-151.0,0.00021975,7]
[326643596,1715191855970,-151.0,0.00021975,7]
[326643597,1715191855979,-151.0,0.00021975,7]
[326643598,1715191855989,-151.0,0.00021975,7]
[326643599,1715191855998,-151.0,0.00021975,7]
[326643600,1715191856009,-151.0,0.00021975,7]
[326643601,1715191856019,-153.309893,0.00021975,7]
[326643602,1715191856028,-153.309893,0.00021975,7]
[326643603,1715191856039,-152.481878,0.00021975,7]
[326643604,1715191856048,-151.0,0.00021975,7]
[326643605,1715191856058,-198.608044,0.00021975,7]
[326643606,1715191856068,-198.608044,0.00021975,7]
[326643607,1715191856077,-198.608044,0.00021975,7]
[326643608,1715191856088,-198.608044,0.00021975,7]
[326643609,1715191856098,-151.0,0.00021975,7]
[326643610,1715191856107,-188.784608,0.00021975,7]
[326643611,1715191856123,-151.0,0.00021975,7]
[326643612,1715191856133,-285.925626,0.00021975,7]
[326643613,1715191856143,-285.925626,0.00021975,7]
[326643614,1715191856152,-453.302917,0.00021975,7]
[326643615,1715191856161,-453.302917,0.00021975,7]
[326643616,1715191856170,-151.0,0.00021975,7]
[326643617,1715191856180,-151.0,0.00021975,7]
[326643618,1715191856190,-151.0,0.00021975,7]
[326643619,1715191856200,-151.0,0.00021975,7]
[326643620,1715191856209,-215.822161,0.00021975,7]
[326643621,1715191856218,-6713.1773435,0.00021975,2]
[326643622,1715191856227,-333.761446,0.00021975,7]
[326643623,1715191856237,-333.761446,0.00021975,7]
[326643624,1715191856246,-154.776194,0.00021975,7]
[326643625,1715191856256,-154.776194,0.00021975,7]
[326643626,1715191856265,-500.0,0.00021975,2]
[326643627,1715191856275,-151.0,0.00021975,7]
[326643628,1715191856284,-181.475129,0.00021975,7]
[326643629,1715191856293,-1886.04,0.00021975,2]
[326643630,1715191856303,-239.63431,0.00021975,7]
[326643631,1715191856313,-181.475129,0.00021975,7]
[326643632,1715191856322,-239.63431,0.00021975,7]
[326643633,1715191856331,-151.0,0.00021975,7]
[326643634,1715191856340,-151.0,0.00021975,5]
[326643635,1715191856350,-151.0,0.00021975,7]
[326643636,1715191856359,-151.0,0.00021975,5]
[326643637,1715191856368,-599.599126,0.00021975,7]
[326643638,1715191856378,-2684.697006,0.00021975,7]
[326643639,1715191856387,-599.599126,0.00021975,7]
[326643640,1715191856396,-2684.697006,0.00021975,7]
[326643641,1715191856406,-151.0,0.00021975,7]
[326643642,1715191856415,-151.0,0.00021975,7]
[326643643,1715191856425,-151.0,0.00021975,7]
[326643644,1715191856435,-241.276372,0.00021975,7]
[326643645,1715191856444,-151.0,0.00021975,7]
[326643646,1715191856454,-5992.180938,0.00021975,7]
[326643647,1715191856465,-151.0,0.00021975,7]
[326643648,1715191856475,-5992.180938,0.00021975,7]
[326643649,1715191856484,-288.056492,0.00021975,7]
[326643650,1715191856494,-288.056492,0.00021975,7]
[326643651,1715191856503,-246.25155,0.00021975,7]
[326643652,1715191856512,-151.0,0.00021975,7]
[326643653,1715191856522,-151.0,0.00021975,7]
[326643654,1715191856531,-554.04924,0.00021975,7]
[326643655,1715191856542,-246.25155,0.00021975,7]
[326643656,1715191856551,-200.1780701,0.00021976,2]
[326643657,1715191856561,-200.40599956,0.00021976,2]
[326643658,1715191856570,-2216.32339775,0.00021976,2]
[326643659,1715191856579,-377.0367828,0.00021976,2]
[326643660,1715191856589,-3055.91272993,0.00021976,2]
[326643661,1715191856599,-459.86712019,0.00021976,2]
[326643662,1715191856608,-188.65310695,0.00021976,2]
[326643663,1715191856618,-236.81343216,0.00021976,2]
[326643664,1715191856627,-200.19191512,0.00021976,2]
[326643665,1715191856636,-155.0,0.00021976,2]
[326643666,1715191856645,-2215.11343661,0.00021976,2]
[326643667,1715191856654,-2000.0,0.00021976,2]
[326643668,1715191856747,-151.0,0.00021976,7]
[326643669,1715191856757,-152.551773,0.00021976,7]
[326643670,1715191856766,-151.0,0.00021976,7]
[326643671,1715191856775,-151.0,0.00021976,7]
[326643672,1715191856785,-151.0,0.00021976,7]
[326643673,1715191856795,-153.309893,0.00021976,7]
[326643674,1715191856804,-153.309893,0.00021976,7]
[326643675,1715191856814,-200.0,0.00021976,2]
[326643676,1715191856823,-214.037179,0.00021976,7]
[326643677,1715191856832,-151.0,0.00021976,7]
[326643678,1715191856843,-151.0,0.00021976,7]
[326643679,1715191856857,-151.0,0.00021976,7]
[326643680,1715191856868,-151.0,0.00021976,7]
[326643681,1715191856878,-257.24917,0.00021976,7]
[326643682,1715191856888,-257.24917,0.00021976,7]
[326643683,1715191856897,-250.093283,0.00021976,7]
[326643684,1715191856906,-250.093283,0.00021976,7]
[326643685,1715191856916,-151.0,0.00021976,7]
[326643686,1715191856925,-151.0,0.00021976,7]
[326643687,1715191856935,-229.105824,0.00021976,7]
[326643688,1715191856944,-151.0,0.00021976,7]
[326643689,1715191856954,-151.0,0.00021976,7]
[326643690,1715191856964,-171.42471041,0.00021977,2]
[326643691,1715191856974,-5859.3084292,0.00021977,2]
[326643692,1715191856983,-154.045938,0.00021977,7]
[326643693,1715191856993,-152.337039,0.00021977,7]
[326643694,1715191857003,-155.0,0.00021978,2]
[326643695,1715191857017,-317.67550535,0.00021978,2]
[326643696,1715191857026,-155.0,0.00021978,2]
[326643697,1715191857036,-887.86064167,0.00021978,2]
[326643698,1715191857046,-12081.41647345,0.00021978,2]
[326643699,1715191857056,-155.0,0.00021978,2]
[326643700,1715191857066,-225.85026106,0.00021978,2]
[326643701,1715191857075,-1000.0,0.00021978,2]
[326643702,1715191857086,-550.17467851,0.00021978,2]
[326643703,1715191857098,-153.563273,0.00021978,7]
[326643704,1715191857108,-152.174193,0.00021978,7]
[326643705,1715191857117,-151.0,0.00021978,7]
[326643706,1715191857127,-151.0,0.00021978,7]
[326643707,1715191857136,-152.345587,0.00021978,7]
[326643708,1715191857146,-151.0,0.00021978,7]
[326643709,1715191857156,-198.608044,0.00021978,7]
[326643710,1715191857165,-198.608044,0.00021978,7]
[326643711,1715191857174,-285.925626,0.00021978,7]
[326643712,1715191857187,-285.925626,0.00021978,7]
[326643713,1715191857196,-453.302917,0.00021978,7]
[326643714,1715191857205,-453.302917,0.00021978,7]
[326643715,1715191857214,-151.0,0.00021978,7]
[326643716,1715191857223,-151.0,0.00021978,7]
[326643717,1715191857233,-151.0,0.00021978,7]
[326643718,1715191857242,-151.0,0.00021978,7]
[326643719,1715191857251,-215.822161,0.00021978,7]
[326643720,1715191857261,-333.761446,0.00021978,7]
[326643721,1715191857270,-333.761446,0.00021978,7]
[326643722,1715191857278,-154.776194,0.00021978,7]
[326643723,1715191857288,-154.776194,0.00021978,7]
[326643724,1715191857299,-151.0,0.00021978,7]
[326643725,1715191857308,-181.475129,0.00021978,7]
[326643726,1715191857318,-239.63431,0.00021978,7]
[326643727,1715191857327,-181.475129,0.00021978,7]
[326643728,1715191857338,-239.63431,0.00021978,7]
[326643729,1715191857348,-151.0,0.00021978,7]
[326643730,1715191857357,-151.0,0.00021978,5]
[326643731,1715191857368,-151.0,0.00021978,7]
[326643732,1715191857377,-151.0,0.00021978,5]
[326643733,1715191857387,-599.599126,0.00021978,7]
[326643734,1715191857397,-2684.697006,0.00021978,7]
[326643735,1715191857407,-599.599126,0.00021978,7]
[326643736,1715191857416,-2684.697006,0.00021978,7]
[326643737,1715191857426,-151.0,0.00021978,7]
[326643738,1715191857437,-151.0,0.00021978,7]
[326643739,1715191857447,-151.0,0.00021978,7]
[326643740,1715191857456,-173.481836,0.00021978,7]
[326643741,1715191857466,-5992.180938,0.00021978,7]
[326643742,1715191857475,-151.0,0.00021978,7]
[326643743,1715191857485,-5992.180938,0.00021978,7]
[326643744,1715191857495,-288.056492,0.00021978,7]
[326643745,1715191857504,-288.056492,0.00021978,7]
[326643746,1715191857514,-246.25155,0.00021978,7]
[326643747,1715191857525,-246.25155,0.00021978,7]
[326643748,1715191857534,-371.03382451,0.00021979,2]
[326643749,1715191857544,-155.0,0.00021979,2]
[326643750,1715191857553,-298.47108253,0.00021979,2]
[326643751,1715191857563,-156.06605412,0.00021979,2]
[326643752,1715191857573,-400.60472374,0.00021979,2]
[326643753,1715191857582,-152.693853,0.00021979,7]
[326643754,1715191857592,-151.0,0.00021979,7]
[326643755,1715191857601,-151.0,0.00021979,7]
[326643756,1715191857610,-151.0,0.00021979,7]
[326643757,1715191857620,-153.309893,0.00021979,7]
[326643758,1715191857629,-153.309893,0.00021979,7]
[326643759,1715191857638,-151.0,0.00021979,7]
[326643760,1715191857648,-151.0,0.00021979,7]
[326643761,1715191857657,-151.0,0.00021979,7]
[326643762,1715191857666,-151.0,0.00021979,7]
[326643763,1715191857675,-257.24917,0.00021979,7]
[326643764,1715191857685,-257.24917,0.00021979,7]
[326643765,1715191857694,-250.093283,0.00021979,7]
[326643766,1715191857704,-250.093283,0.00021979,7]
[326643767,1715191857713,-2670.0,0.00021979,15]
[326643768,1715191857722,-207.0,0.00021979,15]
[326643769,1715191857731,-202.075659,0.00021979,7]
[326643770,1715191857741,-151.0,0.00021979,7]
[326643771,1715191857751,-151.0,0.00021979,7]
[326643772,1715191857760,-151.0,0.00021979,7]
[326643773,1715191857770,-3267.73,0.00021979,15]
[326643774,1715191857779,-240.0,0.00021979,15]
[326643775,1715191857789,-500.0,0.00021979,2]
[326643776,1715191857799,-500.0,0.00021979,2]
[326643777,1715191857809,-500.0,0.00021979,2]
[326643778,1715191857819,-500.0,0.00021979,2]
[326643779,1715191857829,-500.0,0.00021979,2]
[326643780,1715191857839,-500.0,0.00021979,2]
[326643781,1715191857848,-500.0,0.00021979,2]
[326643782,1715191857857,-500.0,0.00021979,2]
[326643783,1715191857868,-1886.04,0.00021979,2]
[326643784,1715191857877,-1886.04,0.00021979,2]
[326643785,1715191857886,-1886.04,0.00021979,2]
[326643786,1715191857895,-1886.04,0.00021979,2]
[326643787,1715191857904,-1886.04,0.00021979,2]
[326643788,1715191857913,-1886.04,0.00021979,2]
[326643789,1715191857923,-1886.04,0.00021979,2]
[326643790,1715191857932,-1886.04,0.00021979,2]
[326643791,1715191857942,-167.91135,0.00021979,7]
[326643792,1715191857951,-151.0,0.00021979,7]
[326643793,1715191857961,-554.04924,0.00021979,7]
[326643794,1715191857972,-121853.27590136,0.0002198,7]
[326643795,1715191857982,-552624.11466547,0.0002198,2]
[326643796,1715191858343,-1255471.11683585,0.0002198,2]
[326643797,1715191858353,-7946.19324778,0.0002198,2]
[326643798,1715191858363,-151.0,0.0002198,7]
[326643799,1715191858372,-151.0,0.0002198,7]
[326643800,1715191858382,-151.0,0.0002198,7]
[326643801,1715191858391,-151.0,0.0002198,7]
[326643802,1715191858401,-151.0,0.0002198,7]
[326643803,1715191858410,-151.0,0.0002198,7]
[326643804,1715191858419,-151.0,0.0002198,7]
[326643805,1715191858429,-151.0,0.0002198,7]
[326643806,1715191858437,-156.317053,0.0002198,7]
[326643807,1715191858446,-225.346851,0.0002198,7]
[326643808,1715191858455,-160.387208,0.0002198,7]
[326643809,1715191858464,-153.309893,0.0002198,7]
[326643810,1715191858474,-153.309893,0.0002198,7]
[326643811,1715191858483,-153.309893,0.0002198,7]
[326643812,1715191858492,-153.309893,0.0002198,7]
[326643813,1715191858501,-153.309893,0.0002198,7]
[326643814,1715191858510,-153.309893,0.0002198,7]
[326643815,1715191858519,-1184.31045036,0.0002198,3]
[326643816,1715191858530,-198.608044,0.0002198,7]
[326643817,1715191858539,-198.608044,0.0002198,7]
[326643818,1715191858548,-198.608044,0.0002198,7]
[326643819,1715191858557,-198.608044,0.0002198,7]
[326643820,1715191858565,-198.608044,0.0002198,7]
[326643821,1715191858574,-198.608044,0.0002198,7]
[326643822,1715191858583,-285.925626,0.0002198,7]
[326643823,1715191858594,-285.925626,0.0002198,7]
[326643824,1715191858602,-285.925626,0.0002198,7]
[326643825,1715191858612,-285.925626,0.0002198,7]
[326643826,1715191858621,-285.925626,0.0002198,7]
[326643827,1715191858630,-285.925626,0.0002198,7]
[326643828,1715191858640,-453.302917,0.0002198,7]
[326643829,1715191858650,-453.302917,0.0002198,7]
[326643830,1715191858659,-453.302917,0.0002198,7]
[326643831,1715191858667,-453.302917,0.0002198,7]
[326643832,1715191858677,-453.302917,0.0002198,7]
[326643833,1715191858687,-453.302917,0.0002198,7]
[326643834,1715191858696,-151.0,0.0002198,7]
[326643835,1715191858705,-151.0,0.0002198,7]
[326643836,1715191858715,-151.0,0.0002198,7]
[326643837,1715191858724,-151.0,0.0002198,7]
[326643838,1715191858733,-155.496425,0.0002198,7]
[326643839,1715191858742,-151.0,0.0002198,7]
[326643840,1715191858751,-151.0,0.0002198,7]
[326643841,1715191858762,-264.65706,0.0002198,7]
[326643842,1715191858771,-151.0,0.0002198,7]
[326643843,1715191858780,-151.0,0.0002198,7]
[326643844,1715191858789,-151.0,0.0002198,7]
[326643845,1715191858799,-257.24917,0.0002198,7]
[326643846,1715191858808,-257.24917,0.0002198,7]
[326643847,1715191858819,-257.24917,0.0002198,7]
[326643848,1715191858829,-257.24917,0.0002198,7]
[326643849,1715191858838,-257.24917,0.0002198,7]
[326643850,1715191858848,-257.24917,0.0002198,7]
[326643851,1715191858857,-250.093283,0.0002198,7]
[326643852,1715191858866,-250.093283,0.0002198,7]
[326643853,1715191858876,-250.093283,0.0002198,7]
[326643854,1715191858885,-250.093283,0.0002198,7]
[326643855,1715191858895,-250.093283,0.0002198,7]
[326643856,1715191858904,-250.093283,0.0002198,7]
[326643857,1715191858914,-151.0,0.0002198,7]
[326643858,1715191858923,-151.0,0.0002198,7]
[326643859,1715191858932,-207.88358,0.0002198,7]
[326643860,1715191858942,-151.0,0.0002198,7]
[326643861,1715191858951,-151.0,0.0002198,7]
[326643862,1715191858962,-271.744942,0.0002198,7]
[326643863,1715191858972,-151.0,0.0002198,7]
[326643864,1715191858982,-151.0,0.0002198,7]
[326643865,1715191858991,-155.090454,0.0002198,7]
[326643866,1715191859001,-197.766746,0.0002198,7]
[326643867,1715191859014,-215.822161,0.0002198,7]
[326643868,1715191859023,-215.822161,0.0002198,7]
[326643869,1715191859032,-215.822161,0.0002198,7]
[326643870,1715191859042,-333.761446,0.0002198,7]
[326643871,1715191859051,-333.761446,0.0002198,7]
[326643872,1715191859060,-333.761446,0.0002198,7]
[326643873,1715191859070,-333.761446,0.0002198,7]
[326643874,1715191859079,-333.761446,0.0002198,7]
[326643875,1715191859088,-333.761446,0.0002198,7]
[326643876,1715191859183,-154.776194,0.0002198,7]
[326643877,1715191859193,-154.776194,0.0002198,7]
[326643878,1715191859202,-154.776194,0.0002198,7]
[326643879,1715191859213,-154.776194,0.0002198,7]
[326643880,1715191859223,-154.776194,0.0002198,7]
[326643881,1715191859233,-154.776194,0.0002198,7]
[326643882,1715191859242,-151.0,0.0002198,7]
[326643883,1715191859251,-167.989403,0.0002198,7]
[326643884,1715191859260,-151.0,0.0002198,7]
[326643885,1715191859270,-274.484401,0.0002198,7]
[326643886,1715191859279,-151.0,0.0002198,7]
[326643887,1715191859289,-151.0,0.0002198,7]
[326643888,1715191859298,-214.122729,0.0002198,7]
[326643889,1715191859307,-151.0,0.0002198,7]
[326643890,1715191859317,-246.350896,0.0002198,7]
[326643891,1715191859326,-181.475129,0.0002198,7]
[326643892,1715191859335,-181.475129,0.0002198,7]
[326643893,1715191859345,-181.475129,0.0002198,7]
[326643894,1715191859354,-239.63431,0.0002198,7]
[326643895,1715191859363,-239.63431,0.0002198,7]
[326643896,1715191859373,-181.475129,0.0002198,7]
[326643897,1715191859382,-239.63431,0.0002198,7]
[326643898,1715191859391,-181.475129,0.0002198,7]
[326643899,1715191859400,-181.475129,0.0002198,7]
[326643900,1715191859410,-239.63431,0.0002198,7]
[326643901,1715191859419,-239.63431,0.0002198,7]
[326643902,1715191859430,-239.63431,0.0002198,7]
[326643903,1715191859439,-151.0,0.0002198,7]
[326643904,1715191859449,-282.734385,0.0002198,7]
[326643905,1715191859459,-151.0,0.0002198,5]
[326643906,1715191859468,-151.0,0.0002198,5]
[326643907,1715191859478,-151.0,0.0002198,5]
[326643908,1715191859488,-151.0,0.0002198,7]
[326643909,1715191859498,-151.0,0.0002198,7]
[326643910,1715191859508,-151.0,0.0002198,7]
[326643911,1715191859518,-151.0,0.0002198,5]
[326643912,1715191859530,-187.913658,0.0002198,5]
[326643913,1715191859539,-599.599126,0.0002198,7]
[326643914,1715191859548,-599.599126,0.0002198,7]
[326643915,1715191859558,-599.599126,0.0002198,7]
[326643916,1715191859567,-2684.697006,0.0002198,7]
[326643917,1715191859576,-2684.697006,0.0002198,7]
[326643918,1715191859586,-2684.697006,0.0002198,7]
[326643919,1715191859595,-599.599126,0.0002198,7]
[326643920,1715191859604,-599.599126,0.0002198,7]
[326643921,1715191859613,-599.599126,0.0002198,7]
[326643922,1715191859624,-2684.697006,0.0002198,7]
[326643923,1715191859633,-2684.697006,0.0002198,7]
[326643924,1715191859642,-2684.697006,0.0002198,7]
[326643925,1715191859659,-151.0,0.0002198,7]
[326643926,1715191859673,-210.804456,0.0002198,7]
[326643927,1715191859683,-151.0,0.0002198,7]
[326643928,1715191859693,-151.0,0.0002198,7]
[326643929,1715191859702,-151.0,0.0002198,7]
[326643930,1715191859711,-151.0,0.0002198,7]
[326643931,1715191859720,-151.0,0.0002198,7]
[326643932,1715191859730,-151.0,0.0002198,7]
[326643933,1715191859739,-5992.180938,0.0002198,7]
[326643934,1715191859748,-5992.180938,0.0002198,7]
[326643935,1715191859758,-5992.180938,0.0002198,7]
[326643936,1715191859768,-151.0,0.0002198,7]
[326643937,1715191859777,-151.0,0.0002198,7]
[326643938,1715191859787,-5992.180938,0.0002198,7]
[326643939,1715191859797,-151.0,0.0002198,7]
[326643940,1715191859806,-5992.180938,0.0002198,7]
[326643941,1715191859816,-5992.18093,0.0002198,7]
[326643942,1715191859825,-288.056492,0.0002198,7]
[326643943,1715191859834,-288.056492,0.0002198,7]
[326643944,1715191859844,-288.056492,0.0002198,7]
[326643945,1715191859853,-288.056492,0.0002198,7]
[326643946,1715191859863,-288.056492,0.0002198,7]
[326643947,1715191859872,-288.056494,0.0002198,7]
[326643948,1715191859881,-246.25155,0.0002198,7]
[326643949,1715191859891,-246.25155,0.0002198,7]
[326643950,1715191859900,-246.25155,0.0002198,7]
[326643951,1715191859910,-151.0,0.0002198,7]
[326643952,1715191859919,-151.0,0.0002198,7]
[326643953,1715191859929,-151.0,0.0002198,7]
[326643954,1715191859938,-554.04924,0.0002198,7]
[326643955,1715191859947,-554.04924,0.0002198,7]
[326643956,1715191859957,-554.04924,0.0002198,7]
[326643957,1715191859967,-246.25155,0.0002198,7]
[326643958,1715191859976,-246.25155,0.0002198,7]
[326643959,1715191859985,-500.0,0.00021984,2]
[326643960,1715191859995,-500.0,0.00021984,2]